bitfinex/quotes_ETHUSD_20240701
["timestamp","ask_amount","ask_price","bid_price","bid_amount"]
[1719830595461,0.03852211,3473.8,3473.3,4.35992466]
[1719830595775,0.03852211,3473.8,3473.4,2.87902]
[1719830596151,0.03852211,3473.8,3473.4,3.31990427]
[1719830596963,0.03852211,3473.8,3473.5,2.87888]
[1719830597560,0.03852211,3473.8,3473.4,0.44088427]
[1719830598078,0.03852211,3473.8,3473.2,1.954]
[1719830598240,2.91726211,3473.8,3473.2,1.954]
[1719830598448,0.02077972,3473.7,3473.2,1.954]
[1719830598656,0.05847024,3473.7,3473.2,1.954]
[1719830599763,0.05847024,3473.7,3473.2,4.83318]
[1719830599942,0.05847024,3473.7,3473.2,6.31402066]
[1719830601981,0.05847024,3473.7,3473.2,4.36002066]
[1719830602146,0.05847024,3473.7,3473.2,6.31402066]
[1719830606281,0.05847024,3473.7,3473.3,2.87907]
[1719830606789,0.03769052,3473.7,3473.4,2.87901]
[1719830606951,0.03769052,3473.7,3473.4,3.79831307]
[1719830607155,3.0,3473.9,3473.4,3.79831307]
[1719830607354,0.03769736,3473.6,3473.4,3.79831307]
[1719830607657,2.4828,3474.2,3473.5,2.87889]
[1719830607861,2.4828,3474.2,3473.9,2.87854]
[1719830608089,2.37447972,3474.5,3474.0,1.954]
[1719830608524,2.37447972,3474.5,3474.0,4.83247]
[1719830608800,0.02077972,3474.4,3474.2,2.87835]
[1719830609001,0.02077972,3474.4,3474.0,4.83246]
[1719830609584,0.02077972,3474.4,3474.1,2.87843]
[1719830611264,0.02077972,3474.4,3474.2,2.87836]
[1719830612154,0.03627096,3474.3,3474.2,2.87836]
[1719830612352,0.03627096,3474.3,3474.1,0.771103]
[1719830613090,0.03627096,3474.3,3474.1,2.87842]
[1719830618495,0.03627096,3474.3,3474.0,4.8325]
[1719830618693,0.03627096,3474.3,3474.0,1.954]
[1719830618859,2.93535068,3474.3,3473.7,1.954]
[1719830619059,2.93535068,3474.3,3473.8,0.26773034]
[1719830620291,2.93535068,3474.3,3473.7,1.954]
[1719830620496,2.87847,3474.1,3473.5,0.72330337]
[1719830620686,2.89934972,3474.0,3473.5,2.67730337]
[1719830620997,2.93548631,3474.0,3473.5,2.67730337]
[1719830622190,0.02077972,3473.9,3473.5,2.67730337]
[1719830622396,0.02077972,3473.9,3473.6,1.4446743]
[1719830622594,0.03354736,3473.8,3473.6,1.4446743]
[1719830624572,0.02077972,3474.1,3473.6,1.4446743]
[1719830624772,0.03353943,3473.7,3473.6,1.4446743]
[1719830624992,0.02077972,3474.1,3473.6,1.4446743]
[1719830625300,0.03353943,3473.7,3473.6,1.4446743]
[1719830625497,0.02077972,3474.1,3473.6,1.4446743]
[1719830626099,0.03370537,3474.0,3473.6,1.4446743]
[1719830626277,2.2638,3473.7,3473.1,2.87925]
[1719830626477,0.02077972,3473.6,3473.3,1.954]
[1719830626906,0.03349036,3473.5,3473.3,1.954]
[1719830628501,0.03349036,3473.5,3473.3,4.83306]
[1719830629499,0.03349036,3473.5,3473.4,2.87902]
[1719830631818,0.03349036,3473.5,3473.4,3.69202]
[1719830632728,2.268,3474.0,3473.4,4.34914]
[1719830633019,2.268,3474.0,3473.7,2.87877]
[1719830633020,0.0544732,3473.9,3473.7,2.87877]
[1719830633233,0.03369348,3473.9,3473.8,3.69169]
[1719830633434,2.28877972,3474.3,3473.8,3.69169]
[1719830633585,0.03369348,3473.9,3473.8,2.87869]
[1719830633786,0.02077972,3474.2,3473.8,3.69169]
[1719830633999,0.02077972,3474.2,3474.1,0.813]
[1719830637135,0.02077972,3474.3,3474.1,0.813]
[1719830637335,0.02077972,3474.3,3474.1,1.182169]
[1719830637828,0.02077972,3474.3,3474.1,0.813]
[1719830638130,0.02077972,3474.4,3474.0,2.87846]
[1719830638434,0.02077972,3474.4,3474.2,0.813]
[1719830642309,0.03417069,3474.3,3474.2,0.813]
[1719830646109,0.03417069,3474.3,3474.2,0.813]
[1719830646438,2.91251069,3474.3,3474.2,0.813]
[1719830646616,3.72096573,3474.3,3474.2,0.813]
[1719830647216,3.72096573,3474.3,3473.6,8.89012963]
[1719830647411,2.4732,3474.1,3473.6,6.01134963]
[1719830647625,2.89931972,3474.0,3473.6,6.01134963]
[1719830647803,2.93339274,3474.0,3473.9,0.813]
[1719830648915,5.81197274,3474.0,3473.6,6.01134963]
[1719830649239,2.93339274,3474.0,3473.9,0.813]
[1719830650134,0.05485274,3474.0,3473.9,0.813]
[1719830650842,0.03407302,3474.0,3473.9,0.813]
[1719830651137,0.03407302,3474.0,3473.9,1.182184]
[1719830651512,0.02077972,3474.3,3473.9,1.182184]
[1719830651717,0.03406271,3474.0,3473.8,2.87867]
[1719830651941,0.02077972,3474.3,3473.9,0.813]
[1719830652139,2.89904972,3474.3,3474.2,0.813]
[1719830654410,0.02077972,3474.3,3474.2,0.813]
[1719830655545,0.02077972,3474.5,3474.2,0.813]
[1719830655713,0.02077972,3474.5,3474.4,0.813]
[1719830657148,0.05510951,3474.5,3474.4,0.813]
[1719830657821,2.93321951,3474.5,3474.4,0.813]
[1719830658027,5.93321951,3474.5,3474.4,0.813]
[1719830659148,5.93321951,3474.5,3474.2,0.813]
[1719830659456,3.89086146,3474.5,3473.6,6.01134963]
[1719830659614,5.30431,3474.1,3473.9,0.813]
[1719830659810,0.02077972,3474.0,3473.9,0.813]
[1719830660145,2.93335497,3474.0,3473.9,0.813]
[1719830660549,2.93335497,3474.0,3473.6,6.01134963]
[1719830660550,0.05483497,3474.0,3473.6,6.01134963]
[1719830660754,0.05483497,3474.0,3473.7,0.813]
[1719830661553,2.87875,3473.8,3473.7,0.813]
[1719830661949,2.93347513,3473.8,3473.6,6.01134963]
[1719830662172,8.15681972,3473.7,3473.6,6.01134963]
[1719830662318,2.87885,3473.6,3472.6,4.66607]
[1719830662647,2.87907,3473.4,3473.3,0.813]
[1719830663149,2.91279569,3473.4,3473.3,0.813]
[1719830663584,2.485,3473.3,3472.5,8.89108963]
[1719830663716,2.87941,3473.0,3472.6,1.06774896]
[1719830663916,2.87952,3472.8,3472.6,1.06774896]
[1719830664160,0.02077972,3472.7,3472.6,1.06774896]
[1719830664450,0.02077972,3472.7,3472.6,0.813]
[1719830664650,0.054212,3472.7,3472.6,0.813]
[1719830664818,2.90037972,3472.7,3472.1,2.88002]
[1719830665020,2.933812,3472.7,3472.6,0.813]
[1719830665240,2.90037972,3472.7,3472.6,0.813]
[1719830665441,2.933812,3472.7,3472.6,0.813]
[1719830665639,2.91303228,3472.7,3472.6,0.813]
[1719830665955,2.91303228,3472.7,3472.1,4.83302]
[1719830666154,0.02077972,3472.6,3472.2,1.55110296]
[1719830668576,2.90045972,3472.6,3472.2,1.55110296]
[1719830668792,2.90045972,3472.6,3472.1,1.953]
[1719830669639,0.02077972,3472.6,3471.9,6.01134963]
[1719830669844,0.02077972,3472.6,3471.9,8.89160963]
[1719830670499,2.90052972,3472.6,3471.9,8.89160963]
[1719830670769,2.90052972,3472.6,3472.0,1.37250196]
[1719830671087,2.87978,3472.5,3472.0,1.37250196]
[1719830671393,0.02077972,3472.4,3472.0,1.37250196]
[1719830672298,0.02077972,3472.4,3472.0,4.25267196]
[1719830672435,2.90047972,3472.6,3472.0,4.25267196]
[1719830672638,2.90047972,3472.6,3472.1,0.9086012]
[1719830674076,0.02077972,3472.6,3472.1,0.9086012]
[1719830674279,0.02077972,3472.6,3472.2,4.833]
[1719830674474,2.44447972,3473.0,3472.2,4.833]
[1719830674976,0.03338108,3472.9,3472.2,4.833]
[1719830675175,0.02077972,3472.8,3472.3,1.04081712]
[1719830675370,0.03327118,3472.7,3472.3,1.04081712]
[1719830675674,0.02077972,3472.8,3472.3,1.04081712]
[1719830675872,0.03321622,3472.6,3472.3,1.04081712]
[1719830676066,0.03327118,3472.7,3472.3,1.04081712]
[1719830676239,0.03316126,3472.5,3472.3,1.04081712]
[1719830676443,0.02077972,3472.8,3472.3,1.04081712]
[1719830676646,0.03311204,3472.4,3472.3,1.04081712]
[1719830676845,0.02077972,3472.8,3472.3,1.04081712]
[1719830677353,0.03330732,3472.7,3472.3,1.04081712]
[1719830677688,0.02077972,3472.8,3472.3,1.04081712]
[1719830677852,0.03325236,3472.6,3472.3,1.04081712]
[1719830678190,0.0331974,3472.5,3472.3,1.04081712]
[1719830678346,2.90037972,3472.7,3472.3,1.04081712]
[1719830678551,0.03325236,3472.6,3471.9,1.953]
[1719830678763,2.90037972,3472.7,3471.9,1.953]
[1719830678983,2.87977,3472.5,3471.9,1.953]
[1719830679284,0.05384067,3472.4,3471.9,1.953]
[1719830679584,0.02077972,3472.4,3472.0,0.661972]
[1719830680352,0.02077972,3472.6,3472.0,0.661972]
[1719830680553,0.03311591,3472.5,3472.0,0.661972]
[1719830681253,0.03311591,3472.5,3472.0,3.542152]
[1719830681758,0.05389563,3472.5,3472.1,2.88008]
[1719830681985,0.02077972,3472.7,3472.2,3.7175132]
[1719830683983,0.03319726,3472.6,3472.2,3.7175132]
[1719830684153,0.02077972,3472.8,3472.3,4.83293]
[1719830684563,0.03325222,3472.7,3472.5,2.87968]
[1719830684784,3.02077972,3473.2,3472.6,0.771261]
[1719830684964,0.03347661,3473.1,3472.7,1.953]
[1719830685169,0.03347661,3473.1,3472.8,2.87951]
[1719830686554,0.03347661,3473.1,3472.8,4.83251]
[1719830687691,0.03347661,3473.1,3472.9,2.87938]
[1719830687993,0.02077972,3473.5,3473.0,3.69234]
[1719830688195,0.02077972,3473.5,3473.4,0.813]
[1719830688378,2.35707972,3473.6,3473.4,0.813]
[1719830688782,0.02077972,3473.7,3473.4,0.813]
[1719830688983,0.02077972,3473.7,3473.6,0.813]
[1719830689186,0.02077972,3473.9,3473.6,0.813]
[1719830689366,0.02077972,3473.9,3473.8,0.813]
[1719830690271,0.02077972,3474.1,3473.8,0.813]
[1719830690595,0.02077972,3474.1,3474.0,0.813]
[1719830690988,0.02077972,3474.2,3474.0,0.813]
[1719830691187,0.02077972,3474.2,3474.1,0.813]
[1719830691995,0.02077972,3474.2,3473.7,2.87877]
[1719830692374,0.02077972,3474.2,3473.6,4.82984]
[1719830694873,0.02077972,3474.2,3473.6,1.951]
[1719830695080,3.02077972,3474.2,3473.6,1.951]
[1719830695397,5.89920972,3474.2,3473.6,1.951]
[1719830695769,2.87845,3474.1,3473.6,1.951]
[1719830695967,0.02077972,3474.0,3473.6,1.951]
[1719830697370,2.87866,3473.9,3473.6,1.951]
[1719830697571,0.02077972,3473.8,3473.6,1.951]
[1719830698496,0.02077972,3473.8,3473.4,6.01134963]
[1719830698671,2.4126,3473.5,3473.4,6.01134963]
[1719830698867,2.43337972,3473.5,3473.4,6.01134963]
[1719830699904,0.02077972,3473.7,3473.4,6.01134963]
[1719830700104,2.89956972,3473.7,3473.4,6.01134963]
[1719830700792,2.87891,3473.6,3473.4,6.01134963]
[1719830701019,0.02077972,3473.5,3473.4,6.01134963]
[1719830701381,0.02077972,3473.5,3473.2,1.951]
[1719830702208,0.03372232,3473.4,3473.2,1.951]
[1719830702573,2.3673,3473.3,3472.7,8.89093963]
[1719830702775,0.02077972,3473.2,3472.7,2.87959]
[1719830703034,2.89996972,3473.2,3472.4,12.17]
[1719830703194,2.87941,3473.0,3472.4,14.121]
[1719830703507,2.90021972,3472.9,3472.4,15.47618563]
[1719830704112,0.02077972,3472.9,3472.4,15.47618563]
[1719830704316,2.90012972,3473.0,3472.4,14.121]
[1719830704481,5.29659,3472.9,3472.4,12.17]
[1719830704681,0.02077972,3472.8,3472.3,6.01134963]
[1719830704920,0.05432627,3472.8,3472.3,6.01134963]
[1719830705790,2.87967,3472.7,3472.3,6.01134963]
[1719830705996,0.05421637,3472.6,3472.3,6.01134963]
[1719830706198,0.05421637,3472.6,3472.2,1.951]
[1719830706378,0.02077972,3472.6,3472.2,1.951]
[1719830707313,2.90035972,3472.8,3472.2,5.780774]
[1719830707496,0.03337137,3472.5,3472.2,5.780774]
[1719830707695,0.02077972,3472.7,3472.2,5.780774]
[1719830708318,0.02077972,3472.7,3472.3,2.87992]
[1719830708487,0.03342518,3472.6,3472.3,2.87992]
[1719830708688,0.03342518,3472.6,3472.4,0.8660694]
[1719830708984,0.03204682,3472.5,3472.4,0.8660694]
[1719830709244,0.02077972,3472.8,3472.4,0.8660694]
[1719830709536,0.03204682,3472.5,3472.4,0.8660694]
[1719830709687,0.02077972,3472.8,3472.4,0.8660694]
[1719830709885,0.03206592,3472.5,3472.4,0.8660694]
[1719830710119,0.02077972,3472.8,3472.4,0.8660694]
[1719830710324,0.03206592,3472.5,3472.4,0.8660694]
[1719830710487,0.02077972,3472.8,3472.4,0.8660694]
[1719830710691,0.03206592,3472.5,3472.4,0.8660694]
[1719830711326,0.02077972,3472.7,3472.4,0.8660694]
[1719830711649,0.02077972,3472.7,3472.2,4.83101]
[1719830711825,0.03212088,3472.6,3472.2,1.951]
[1719830711994,0.03212088,3472.6,3472.0,2.88012]
[1719830712199,0.03212088,3472.6,3472.5,0.814]
[1719830714397,2.91187088,3472.6,3471.9,4.66665]
[1719830714599,0.02077972,3472.5,3472.0,1.35583996]
[1719830714794,0.02077972,3472.5,3472.4,0.814]
[1719830714994,0.05284853,3472.5,3472.4,0.814]
[1719830718422,0.03206881,3472.5,3472.4,0.814]
[1719830718599,0.02077972,3472.7,3472.4,0.814]
[1719830718791,0.02077972,3472.7,3472.6,0.814]
[1719830719495,2.90037972,3472.7,3472.6,0.814]
[1719830720402,0.02077972,3472.7,3472.6,0.814]
[1719830722298,2.90037972,3472.7,3472.6,0.814]
[1719830723740,2.8796,3472.7,3472.6,0.814]
[1719830725743,0.02077972,3472.8,3472.6,0.814]
[1719830726662,0.02077972,3472.9,3472.6,0.814]
[1719830726926,3.02077972,3473.0,3472.8,0.814]
[1719830727338,0.02077972,3473.2,3472.8,1.183372]
[1719830727503,0.02077972,3473.2,3473.1,0.814]
[1719830727929,5.28927972,3473.3,3473.1,0.814]
[1719830728949,0.02077972,3473.2,3473.1,0.814]
[1719830730754,3.02077972,3473.3,3473.1,0.814]
[1719830732458,0.06114432,3473.2,3473.1,0.814]
[1719830732638,3.02077972,3473.3,3473.1,0.814]
[1719830732840,0.06114432,3473.2,3473.1,0.814]
[1719830733040,3.02077972,3473.3,3473.1,0.814]
[1719830733266,0.06114432,3473.2,3473.1,0.814]
[1719830733641,3.02077972,3473.3,3473.1,0.814]
[1719830734043,0.06114432,3473.2,3473.1,0.814]
[1719830734227,3.02077972,3473.3,3473.1,0.814]
[1719830734563,0.06114432,3473.2,3473.1,0.814]
[1719830734951,3.02077972,3473.3,3473.1,0.814]
[1719830735149,0.06114432,3473.2,3473.1,0.814]
[1719830735342,3.02077972,3473.3,3473.1,0.814]
[1719830735539,0.06114432,3473.2,3473.1,0.814]
[1719830735958,0.02077972,3473.2,3473.1,0.814]
[1719830736259,3.02077972,3473.3,3473.1,0.814]
[1719830736628,0.06114432,3473.2,3473.1,0.814]
[1719830736962,3.02077972,3473.3,3473.1,0.814]
[1719830737134,0.06114432,3473.2,3473.1,0.814]
[1719830737335,0.02077972,3473.3,3473.1,0.814]
[1719830737557,0.06114432,3473.2,3473.1,0.814]
[1719830737758,0.02077972,3473.3,3473.1,0.814]
[1719830737947,0.06114432,3473.2,3473.1,0.814]
[1719830738148,0.02077972,3473.3,3473.1,0.814]
[1719830738359,0.06114432,3473.2,3473.1,0.814]
[1719830738735,0.02077972,3473.3,3473.1,0.814]
[1719830738935,0.06114432,3473.2,3473.1,0.814]
[1719830739467,2.4399,3473.6,3473.1,1.471294]
[1719830739667,5.87859,3474.0,3473.0,2.87933]
[1719830739668,5.29983972,3473.9,3473.5,0.814]
[1719830739877,2.42117972,3473.9,3473.7,0.814]
[1719830740045,2.4004,3473.9,3473.7,0.814]
[1719830740249,2.87837,3474.2,3473.7,0.814]
[1719830740250,0.02077972,3474.1,3473.7,0.814]
[1719830740450,0.02077972,3474.1,3473.9,0.814]
[1719830742250,0.02077972,3474.3,3473.9,0.814]
[1719830742458,0.02077972,3474.3,3474.1,0.814]
[1719830743998,1.12841369,3474.3,3474.1,0.814]
[1719830744298,0.02077972,3474.2,3474.1,0.814]
[1719830745005,0.02077972,3474.2,3473.6,2.87882]
[1719830745006,2.87866,3473.9,3473.3,6.01134963]
[1719830745298,2.34687972,3473.8,3473.3,8.89044963]
[1719830745600,0.02077972,3473.7,3473.3,8.89044963]
[1719830745900,0.02077972,3473.7,3473.6,0.814]
[1719830747297,2.89954972,3473.7,3473.6,0.814]
[1719830747457,2.93996306,3473.7,3473.0,4.66572]
[1719830747657,2.89954972,3473.7,3473.5,0.814]
[1719830747860,2.87885,3473.6,3473.5,0.814]
[1719830748068,2.93998896,3473.6,3473.5,0.814]
[1719830748761,2.93998896,3473.6,3472.9,6.01134963]
[1719830748762,2.87896,3473.5,3472.9,6.01134963]
[1719830748966,0.02077972,3473.4,3472.9,6.01134963]
[1719830749167,2.8791,3473.3,3472.9,6.01134963]
[1719830749343,0.02077972,3473.2,3473.1,0.814]
[1719830750054,0.06107218,3473.2,3473.1,0.814]
[1719830750749,0.04029246,3473.2,3473.1,0.814]
[1719830750950,2.89972972,3473.5,3473.1,0.814]
[1719830751250,2.89972972,3473.5,3473.4,0.814]
[1719830751879,2.87895,3473.5,3473.4,0.814]
[1719830753577,2.87895,3473.5,3472.9,2.87936]
[1719830753578,2.8791,3473.4,3473.3,0.814]
[1719830753777,2.89987972,3473.4,3473.3,0.814]
[1719830755370,0.02077972,3473.4,3473.3,0.814]
[1719830755571,0.02077972,3473.5,3473.3,0.814]
[1719830756885,2.89964972,3473.6,3473.3,0.814]
[1719830757183,0.02077972,3473.6,3473.3,0.814]
[1719830757682,0.02077972,3473.6,3473.5,0.814]
[1719830760453,2.89962972,3473.6,3473.5,0.814]
[1719830761554,2.87895,3473.5,3472.9,2.87939]
[1719830761863,0.02077972,3473.4,3473.3,0.814]
[1719830762266,0.04041451,3473.4,3473.3,0.814]
[1719830762477,2.89965972,3473.6,3473.3,0.814]
[1719830762680,0.02077972,3473.6,3473.1,2.87927]
[1719830762855,0.02077972,3473.6,3473.5,0.814]
[1719830763460,0.02077972,3473.7,3473.5,0.814]
[1719830763663,0.02077972,3473.7,3473.6,0.814]
[1719830767294,0.02077972,3473.7,3473.2,2.87918]
[1719830767611,0.02077972,3473.7,3473.5,0.814]
[1719830769119,0.02077972,3473.9,3473.5,0.814]
[1719830769323,0.02077972,3473.9,3473.7,0.814]
[1719830770018,2.87869,3473.8,3473.7,0.814]
[1719830770227,2.87881,3473.7,3473.5,0.814]
[1719830770432,2.89962972,3473.6,3473.0,4.23496396]
[1719830770935,2.89962972,3473.6,3473.3,0.814]
[1719830771291,0.02077972,3473.5,3473.3,0.814]
[1719830774489,2.87902,3473.4,3472.8,8.89084963]
[1719830774693,0.02077972,3473.3,3473.2,0.814]
[1719830776313,0.02077972,3473.4,3473.2,0.814]
[1719830777230,0.04061991,3473.3,3473.2,0.814]
[1719830777614,2.91971991,3473.3,3472.8,0.90442702]
[1719830777813,2.91971991,3473.3,3472.4,8.89115963]
[1719830777814,2.89996972,3473.2,3472.4,6.01134963]
[1719830778020,2.90001972,3473.2,3472.4,6.01134963]
[1719830778319,2.311,3473.0,3472.8,0.814]
[1719830778521,0.02077972,3472.9,3472.8,0.814]
[1719830778709,0.06118321,3472.9,3472.1,2.88007]
[1719830779035,0.06118321,3472.9,3472.7,0.814]
[1719830779036,0.02077972,3472.9,3472.7,0.814]
[1719830779451,0.04034938,3472.8,3472.7,0.814]
[1719830779628,2.91991938,3472.8,3472.7,0.814]
[1719830779828,2.87961,3472.7,3472.2,1.49138096]
[1719830780042,2.90038972,3472.7,3472.2,1.49138096]
[1719830780215,0.04021287,3472.6,3472.3,1.52159506]
[1719830782049,0.04021287,3472.6,3472.3,4.40151506]
[1719830782421,2.87952,3472.8,3472.3,1.52159506]
[1719830782621,0.04015875,3472.5,3472.3,1.52159506]
[1719830782844,0.02077972,3472.7,3472.3,1.52159506]
[1719830783057,0.03996126,3472.4,3472.3,1.52159506]
[1719830783247,0.02077972,3472.7,3472.3,1.52159506]
[1719830783555,0.02077972,3472.7,3472.4,0.63545951]
[1719830783849,0.02077972,3472.9,3472.4,0.63545951]
[1719830784054,0.02077972,3472.9,3472.5,1.953]
[1719830784929,0.02077972,3473.0,3472.5,1.953]
[1719830785123,0.02077972,3473.0,3472.5,4.83275]
[1719830785323,2.90013972,3473.0,3472.5,3.11859946]
[1719830785953,0.02077972,3472.9,3472.5,3.11859946]
[1719830786367,2.89996972,3473.2,3472.6,2.87963]
[1719830786523,0.02077972,3473.2,3472.6,5.75925]
[1719830786854,0.02077972,3473.2,3472.7,1.1299709]
[1719830787060,0.02077972,3473.2,3472.7,4.0095709]
[1719830788034,0.02077972,3473.2,3472.7,1.1299709]
[1719830788267,0.02077972,3473.5,3473.0,2.87929]
[1719830790658,0.02077972,3473.5,3473.1,2.87925]
[1719830791294,2.28137972,3473.6,3473.1,2.87925]
[1719830791493,2.28137972,3473.6,3473.2,2.87917]
[1719830791835,2.28137972,3473.6,3473.2,3.82897]
[1719830792195,0.03996563,3473.5,3473.2,3.82897]
[1719830794152,0.03996563,3473.5,3473.3,4.83209]
[1719830795468,0.03996563,3473.5,3473.4,2.87902]
[1719830796307,0.02077972,3473.8,3473.6,2.87881]
[1719830797373,0.02077972,3473.8,3473.5,2.87891]
[1719830797782,0.02077972,3473.8,3473.7,2.87877]
[1719830800628,0.02077972,3473.8,3473.7,5.75754]
[1719830804433,0.02077972,3473.8,3473.5,2.87892]
[1719830804586,2.4907,3473.7,3473.6,2.87885]
[1719830813695,2.49127972,3473.9,3473.8,2.87869]
[1719830813895,2.49127972,3473.9,3473.8,3.69169]
[1719830816102,2.50897972,3474.4,3473.8,0.813]
[1719830816432,3.55089797,3474.3,3474.1,2.87839]
[1719830816634,3.57167769,3474.3,3474.1,2.87839]
[1719830821341,3.0,3474.3,3474.2,2.87836]
[1719830821556,2.4882,3474.4,3474.2,2.87836]
[1719830822658,2.4882,3474.4,3473.8,0.813]
[1719830822960,2.4882,3474.4,3473.7,2.87874]
[1719830822961,2.4882,3474.4,3473.9,2.87855]
[1719830823464,0.02077972,3474.3,3474.0,2.87852]
[1719830823659,3.02077972,3474.3,3474.0,2.87852]
[1719830823868,0.02077972,3474.2,3474.0,2.87852]
[1719830827977,3.0,3474.3,3474.1,2.87844]
[1719830828170,2.48617972,3474.6,3474.2,2.87829]
[1719830828958,0.02077972,3474.5,3474.2,2.87829]
[1719830830385,0.02077972,3474.5,3474.3,2.87819]
[1719830830562,0.02077972,3474.5,3474.4,2.87819]
[1719830831077,0.02077972,3474.5,3474.3,2.87826]
[1719830833986,0.02077972,3474.5,3474.1,0.813]
[1719830834184,0.02077972,3474.5,3474.0,2.87851]
[1719830838369,0.02077972,3474.5,3474.1,0.813]
[1719830838788,0.02077972,3474.5,3474.1,3.69143]
[1719830840185,0.02077972,3474.5,3474.4,0.813]
[1719830840491,3.02077972,3474.5,3474.4,0.813]
[1719830840668,0.02077972,3474.5,3474.4,0.813]
[1719830840993,0.02077972,3474.5,3474.2,3.69134]
[1719830843797,0.02077972,3474.5,3474.2,0.813]
[1719830844118,2.89896972,3474.5,3474.0,0.813]
[1719830844513,3.0,3474.4,3474.0,0.813]
[1719830844727,0.02077972,3474.3,3474.0,0.813]
[1719830845875,0.02077972,3474.3,3474.0,3.6915]
[1719830846074,0.02077972,3474.3,3474.0,4.348513]
[1719830846371,0.02077972,3474.5,3474.0,4.348513]
[1719830846722,3.0,3474.6,3474.4,0.813]
[1719830846901,0.02077972,3474.8,3474.4,0.813]
[1719830847074,3.02077972,3474.8,3474.4,0.813]
[1719830847269,2.87751,3475.3,3474.7,0.813]
[1719830847474,0.02077972,3475.4,3475.1,0.813]
[1719830847694,0.02077972,3475.4,3474.6,0.05756085]
[1719830847695,0.02077972,3475.4,3475.3,0.813]
[1719830848008,2.3778,3475.5,3475.3,0.813]
[1719830848186,2.87688,3476.0,3475.3,0.813]
[1719830848383,2.3333,3475.8,3475.7,0.813]
[1719830849504,5.21033,3475.8,3475.7,0.813]
[1719830849706,5.23110972,3475.8,3475.7,0.813]
[1719830850008,2.87714,3475.7,3474.8,2.87783]
[1719830850168,0.02077972,3475.6,3475.4,0.813]
[1719830850570,2.87752,3475.3,3474.7,7.79774963]
[1719830850779,2.323,3475.1,3474.6,0.813]
[1719830850977,2.87801,3474.7,3474.3,6.01134963]
[1719830851212,2.323,3474.5,3474.3,6.01134963]
[1719830851393,2.323,3474.5,3474.2,0.813]
[1719830851812,2.323,3474.5,3473.8,2.87862]
[1719830851976,5.20111,3474.5,3473.8,4.42923096]
[1719830852579,5.20111,3474.5,3473.9,2.8786]
[1719830854882,5.20111,3474.5,3473.8,1.55061096]
[1719830854883,2.87819,3474.4,3473.8,1.55061096]
[1719830855076,2.323,3474.5,3473.9,1.05914815]
[1719830855077,2.87828,3474.3,3473.9,1.05914815]
[1719830855327,5.22193972,3474.5,3473.9,1.05914815]
[1719830856476,2.8782,3474.4,3473.9,1.05914815]
[1719830863326,2.87827,3474.3,3473.9,1.05914815]
[1719830873836,2.87827,3474.3,3474.1,0.813]
[1719830880246,0.02077972,3474.2,3473.7,6.01134963]
[1719830880449,2.87869,3473.8,3473.7,6.01134963]
[1719830880747,2.87869,3473.8,3473.4,12.983]
[1719830880748,2.87869,3473.8,3473.4,0.813]
[1719830880957,2.87853,3474.0,3473.3,2.87903]
[1719830881145,2.87862,3473.9,3473.6,0.813]
[1719830882455,2.87882,3473.7,3473.4,0.813]
[1719830883140,2.87882,3473.7,3473.1,10.67696963]
[1719830883450,2.87882,3473.7,3473.4,0.813]
[1719830884351,2.87882,3473.7,3473.2,1.38387992]
[1719830884577,0.02077972,3473.6,3473.1,6.01134963]
[1719830884720,2.8788,3473.7,3473.1,6.82434963]
[1719830884922,0.02077972,3473.6,3473.1,6.82434963]
[1719830885146,2.87899,3473.5,3473.1,6.82434963]
[1719830887659,2.87899,3473.5,3473.1,6.82434963]
[1719830887861,2.87899,3473.5,3473.1,6.01134963]
[1719830888160,2.87899,3473.5,3473.2,0.813]
[1719830889163,2.87899,3473.5,3473.4,0.813]
[1719830890368,2.87899,3473.5,3473.0,2.86143501]
[1719830890569,2.89980972,3473.4,3473.0,2.86143501]
[1719830890870,2.89980972,3473.4,3472.8,1.7864]
[1719830890871,2.89980972,3473.4,3473.2,0.813]
[1719830891077,2.87903,3473.4,3473.2,0.813]
[1719830892558,2.87903,3473.4,3472.8,4.66591]
[1719830892753,2.87903,3473.4,3473.1,0.813]
[1719830893873,2.89963972,3473.6,3473.1,0.813]
[1719830893874,2.8791,3473.3,3473.1,0.813]
[1719830895353,2.8791,3473.3,3472.7,6.01134963]
[1719830895552,2.87933,3473.1,3472.8,0.813]
[1719830896364,2.87935,3473.0,3472.8,0.813]
[1719830896879,2.87952,3472.8,3472.2,22.84772963]
[1719830897080,2.87961,3472.7,3472.4,0.813]
[1719830897242,2.87969,3472.6,3472.2,1.7864]
[1719830897448,2.87969,3472.6,3472.4,0.813]
[1719830897871,0.02077972,3472.7,3472.4,0.813]
[1719830898182,2.87952,3472.8,3472.4,0.813]
[1719830898183,2.90029972,3472.8,3472.4,0.813]
[1719830898679,2.87961,3472.7,3472.1,2.88009]
[1719830898976,2.87961,3472.7,3472.5,0.813]
[1719830899783,2.90032972,3472.8,3472.5,0.813]
[1719830900788,2.87955,3472.8,3472.5,0.813]
[1719830901005,2.87943,3472.9,3472.5,0.813]
[1719830901149,2.87927,3473.1,3472.8,0.813]
[1719830901354,2.87936,3473.0,3472.8,0.813]
[1719830902483,2.87936,3473.0,3472.6,0.813]
[1719830905490,5.20706972,3473.2,3472.6,0.813]
[1719830905795,2.87929,3473.1,3472.6,0.813]
[1719830906088,2.87929,3473.1,3472.8,0.813]
[1719830906287,2.32787972,3473.2,3472.8,0.813]
[1719830906484,5.20708972,3473.2,3472.8,0.813]
[1719830906892,2.87927,3473.1,3472.8,0.813]
[1719830907094,2.90004972,3473.1,3472.8,0.813]
[1719830908658,2.87927,3473.1,3472.8,0.813]
[1719830911585,2.87936,3473.0,3472.6,0.813]
[1719830912319,5.20706972,3473.2,3472.3,6.01134963]
[1719830912320,2.3071,3473.2,3472.3,6.01134963]
[1719830912491,2.87966,3472.7,3472.3,6.82434963]
[1719830913013,2.87966,3472.7,3472.3,0.813]